bitfinex/quotes_SOLUSD_20250206
["timestamp","ask_amount","ask_price","bid_price","bid_amount"]
[1738822443163,0.03,202.81,202.8,14.2862415]
[1738822447160,0.03,202.81,202.8,51.7076075]
[1738822447664,0.03,202.81,202.8,27.94907003]
[1738822447852,0.0001,202.81,202.8,66.10985918]
[1738822449666,0.10291594,202.88,202.83,20.0]
[1738822449870,0.10291594,202.88,202.87,9.3553415]
[1738822450864,0.10291594,202.88,202.87,14.2845415]
[1738822452982,31.06313361,202.9,202.89,20.12549]
[1738822452983,5.92493361,202.9,202.89,20.12549]
[1738822453147,3.361e-05,202.91,202.89,47.51579227]
[1738822453346,3.361e-05,202.91,202.9,9.3553415]
[1738822453565,3.361e-05,202.91,202.9,29.3553415]
[1738822453772,3.361e-05,202.91,202.9,46.7767075]
[1738822454159,3.361e-05,202.91,202.9,65.36803603]
[1738822454361,3.361e-05,202.91,202.9,14.2838415]
[1738822455079,3.361e-05,202.91,202.9,34.2838415]
[1738822459084,3.361e-05,202.91,202.9,34.4093315]
[1738822459986,3.361e-05,202.91,202.9,71.8306975]
[1738822460195,3.361e-05,202.91,202.9,34.4093315]
[1738822460756,3.361e-05,202.91,202.9,14.4093315]
[1738822460961,3.361e-05,202.91,202.9,51.8306975]
[1738822461953,3.361e-05,202.91,202.9,14.4093315]
[1738822462465,3.361e-05,202.91,202.9,34.2838415]
[1738822462665,3.361e-05,202.91,202.9,14.2838415]
[1738822463557,3.361e-05,202.91,202.9,34.2838415]
[1738822463762,3.361e-05,202.91,202.9,14.2838415]
[1738822467390,3.361e-05,202.91,202.89,9.3553415]
[1738822467906,3.361e-05,202.91,202.9,9.3553415]
[1738822468097,3.361e-05,202.91,202.9,9.4183415]
[1738822468291,3.361e-05,202.91,202.9,29.4183415]
[1738822469692,3.361e-05,202.91,202.9,34.3468415]
[1738822472666,3.361e-05,202.91,202.9,9.4183415]
[1738822472870,3.361e-05,202.91,202.9,0.063]
[1738822474796,30.00003361,202.91,202.9,0.063]
[1738822477483,63.96491364,202.91,202.9,0.063]
[1738822477873,54.60957214,202.91,202.9,0.063]
[1738822478073,41.19772361,202.91,202.9,0.063]
[1738822478281,54.73506214,202.91,202.9,0.063]
[1738822478597,64.09040364,202.91,202.9,0.063]
[1738822478765,64.21589364,202.91,202.9,0.063]
[1738822478970,65.21589364,202.91,202.9,0.063]
[1738822479172,64.21589364,202.91,202.9,0.063]
[1738822481091,65.21589364,202.91,202.9,0.063]
[1738822481591,0.12549,202.81,202.77,9.3553415]
[1738822481894,3.72,202.8,202.77,9.3553415]
[1738822482096,3.72,202.8,202.76,9.3553415]
[1738822482986,3.72,202.8,202.77,9.3553415]
[1738822483186,3.72,202.8,202.78,9.3553415]
[1738822483393,3.72,202.8,202.77,9.3553415]
[1738822484083,3.72,202.8,202.78,9.3553415]
[1738822485189,3.72,202.8,202.77,9.3553415]
[1738822485380,3.72,202.8,202.76,9.3553415]
[1738822486996,30.0,202.79,202.76,9.3553415]
[1738822489199,3.72,202.8,202.78,9.3553415]
[1738822489403,3.72,202.8,202.79,9.3553415]
[1738822489584,3.84549,202.8,202.79,9.3553415]
[1738822489898,3.84549,202.8,202.77,9.3553415]
[1738822491808,0.12549,202.79,202.77,9.3553415]
[1738822492208,0.12549,202.79,202.76,9.4183415]
[1738822492403,30.12549,202.79,202.76,9.4183415]
[1738822494817,0.25098,202.84,202.76,9.4183415]
[1738822494818,38.80726228,202.89,202.81,20.0]
[1738822494981,3.8,202.88,202.87,9.3553415]
[1738822498525,3.92549,202.88,202.87,9.3553415]
[1738822503327,3.78,202.89,202.87,14.2845415]
[1738822503529,3.78,202.89,202.88,9.3553415]
[1738822505547,3.78,202.89,202.87,9.4183415]
[1738822505866,33.78,202.89,202.87,0.063]
[1738822507537,0.12549,202.88,202.87,0.063]
[1738822511677,0.12549,202.88,202.87,9.4183415]
[1738822513280,0.12549,202.88,202.87,0.063]
[1738822513486,3.76,202.89,202.87,9.4183415]
[1738822513661,0.03,202.9,202.88,9.3553415]
[1738822513867,0.03,202.9,202.89,9.3553415]
[1738822514463,0.03,202.9,202.88,9.3553415]
[1738822514788,30.0,202.89,202.87,0.063]
[1738822514968,30.0,202.89,202.87,9.4183415]
[1738822515359,30.0,202.89,202.88,9.3553415]
[1738822515877,0.03,202.9,202.88,9.3553415]
[1738822516079,0.03,202.9,202.89,9.3553415]
[1738822516579,3.79,202.9,202.89,9.3553415]
[1738822519657,0.03,202.9,202.89,9.3553415]
[1738822521272,0.03,202.9,202.89,46.7767075]
[1738822521583,0.03,202.9,202.89,9.3553415]
[1738822521769,30.0,202.86,202.78,6.4963]
[1738822521967,0.12549,202.81,202.76,0.063]
[1738822522287,30.0,202.79,202.75,0.063]
[1738822522486,30.0,202.76,202.68,4.9337]
[1738822522695,30.0,202.76,202.66,6.5593]
[1738822523157,30.0,202.76,202.73,9.3553415]
[1738822523354,30.0,202.76,202.74,9.3553415]
[1738822523559,3.82,202.75,202.73,9.3553415]
[1738822524300,3.82,202.75,202.74,9.3553415]
[1738822524789,3.82,202.75,202.74,14.60100057]
[1738822527588,3.94549,202.75,202.73,14.60100057]
[1738822527984,3.82,202.75,202.74,14.60100057]
[1738822528887,30.0,202.83,202.74,14.60100057]
[1738822529098,3.8,202.79,202.73,20.0]
[1738822529403,3.8,202.79,202.74,4.9954]
[1738822529569,3.8,202.79,202.74,24.9954]
[1738822529765,30.12549,202.83,202.74,24.9954]
[1738822529987,30.12549,202.83,202.79,14.60100057]
[1738822529988,3.8,202.82,202.79,14.60100057]
[1738822530189,30.0,202.83,202.79,14.60100057]
[1738822530378,3.8,202.81,202.79,14.60100057]
[1738822530897,3.8,202.81,202.8,14.60100057]
[1738822533598,3.92549,202.81,202.8,14.60100057]
[1738822534689,3.8,202.81,202.8,14.60100057]
[1738822535706,0.12549,202.85,202.8,19.53190057]
[1738822535897,30.0,202.89,202.84,14.60100057]
[1738822536080,3.8,202.88,202.85,14.60100057]
[1738822536587,0.12549,202.87,202.85,14.60100057]
[1738822537790,0.12549,202.87,202.84,14.60100057]
[1738822537996,0.12549,202.87,202.83,14.60100057]
[1738822539174,30.0,202.85,202.82,14.60100057]
[1738822539380,30.0,202.85,202.81,14.60100057]
[1738822539564,30.03,202.9,202.84,14.60100057]
[1738822539771,30.03,202.9,202.87,14.60100057]
[1738822539772,3.78,202.89,202.87,14.60100057]
[1738822542093,30.03,202.9,202.86,14.60100057]
[1738822542273,3.82,202.89,202.88,14.60100057]
[1738822542980,3.94549,202.89,202.87,14.60100057]
[1738822543293,0.12549,202.86,202.82,14.60100057]
[1738822547198,0.03,202.9,202.85,39.53050057]
[1738822547389,0.03,202.9,202.89,14.60100057]
[1738822548694,0.03,202.9,202.89,29.20200114]
[1738822548895,0.0001,202.9,202.89,29.20200114]
[1738822549193,0.0001,202.9,202.89,14.60100057]
[1738822549398,0.0001,202.9,202.89,19.52970057]
[1738822550899,0.0001,202.9,202.89,34.13070114]
[1738822551600,3.361e-05,202.91,202.89,34.13070114]
[1738822551797,3.361e-05,202.91,202.9,30.06659516]
[1738822552004,0.03,202.98,202.97,14.60100057]
[1738822554479,0.03,202.98,202.97,19.52780057]
[1738822562022,0.03,202.98,202.97,34.12880114]
[1738822562326,0.03,203.02,203.01,14.60100057]
[1738822562611,62.48,203.11,203.04,20.0]
[1738822562788,3.88,203.11,203.1,14.60100057]
[1738822563384,30.0,203.08,203.06,14.60100057]
[1738822563597,30.0,203.05,203.04,14.60100057]
[1738822563803,30.0,203.05,203.03,14.60100057]
[1738822563998,30.0,203.05,203.04,14.60100057]
[1738822564292,30.0,203.1,203.04,14.60100057]
[1738822564493,30.0,203.1,203.08,14.60100057]
[1738822565088,3.88,203.11,203.08,14.60100057]
[1738822565293,3.88,203.11,203.09,14.60100057]
[1738822565595,0.12549,203.1,203.09,14.60100057]
[1738822566618,4.03549,203.1,203.09,14.60100057]
[1738822567183,3.91,203.1,203.09,14.60100057]
[1738822568213,0.12549,203.09,203.07,14.60100057]
[1738822568419,0.12549,203.07,203.05,14.60100057]
[1738822568791,0.12549,203.07,203.06,14.60100057]
[1738822569195,0.03,203.1,203.06,14.60100057]
[1738822569494,0.03,203.1,203.01,0.73877096]
[1738822569495,0.03,203.1,203.09,14.60100057]
[1738822571720,0.03,203.1,203.09,29.20200114]
[1738822573606,0.03,203.1,203.09,29.94037941]
[1738822575328,0.03,203.1,203.09,29.20200114]
[1738822576013,0.03,203.1,203.09,14.60100057]
[1738822576212,0.03,203.1,203.09,29.20200114]
[1738822576608,0.03,203.1,203.09,14.60100057]
[1738822579313,0.03,203.1,203.09,29.20200114]
[1738822581038,0.03,203.1,203.09,14.60100057]
[1738822582432,0.03,203.1,203.08,14.60100057]
[1738822583419,30.0,203.09,203.06,14.60100057]
[1738822583623,30.0,203.09,203.05,14.60100057]
[1738822583820,30.0,203.06,203.04,14.60100057]
[1738822584136,30.0,203.06,203.05,14.60100057]
[1738822585937,30.0,203.09,203.05,14.60100057]
[1738822586153,30.0,203.09,203.07,14.60100057]
[1738822586312,30.0,203.09,203.08,14.60100057]
[1738822586730,30.0,203.09,203.07,14.60100057]
[1738822587632,30.0,203.09,203.06,14.60100057]
[1738822588528,30.0,203.09,203.07,14.60100057]
[1738822588735,3.84,203.08,203.07,14.60100057]
[1738822589219,33.84,203.09,203.07,14.60100057]
[1738822589537,33.84,203.09,203.08,14.60100057]
[1738822594820,33.84,203.09,203.07,14.60100057]
[1738822595019,33.84,203.09,203.08,14.60100057]
[1738822596319,0.03,203.1,203.09,4.9239]
[1738822600641,0.03,203.1,203.08,14.60100057]
[1738822604442,0.03,203.1,203.08,19.52510057]
[1738822607336,0.03,203.1,203.09,14.60100057]
[1738822608153,0.03,203.1,203.08,19.52510057]
[1738822609152,0.03,203.1,203.08,14.60100057]
[1738822612456,0.03,203.1,203.08,19.52510057]
[1738822612754,0.03,203.1,203.08,14.60100057]
[1738822613063,30.0,203.09,203.08,14.60100057]
[1738822613236,30.0,203.09,203.06,14.60100057]
[1738822614860,30.0,203.06,203.04,14.60100057]
[1738822616534,30.0,203.06,203.02,14.66400057]
[1738822616732,30.0,203.03,203.02,0.063]
[1738822616936,33.82,203.03,203.02,0.063]
[1738822617753,33.82,203.03,203.02,14.66400057]
[1738822617944,3.82,203.03,203.02,14.66400057]
[1738822618153,33.82,203.03,203.02,14.66400057]
[1738822619857,3.82,203.03,203.02,14.66400057]
[1738822620262,7.82121449,203.08,203.02,14.66400057]
[1738822620263,3.8,203.04,203.02,14.66400057]
[1738822620567,11.49572449,203.08,203.03,34.60100057]
[1738822620745,11.49572449,203.08,203.07,14.60100057]
[1738822622571,3.8,203.08,203.07,14.60100057]
[1738822625268,3.83,203.08,203.07,14.60100057]
[1738822626364,30.0,203.06,203.05,14.60100057]
[1738822628068,30.0,203.06,203.03,14.60100057]
[1738822628288,3.83,203.08,203.02,0.063]
[1738822628289,30.0,203.03,203.02,0.063]
[1738822630368,30.0,203.06,203.02,0.063]
[1738822630673,7.72572449,203.08,203.05,34.60100057]
[1738822630878,7.72572449,203.08,203.07,14.60100057]
[1738822632359,7.72572449,203.08,203.07,19.52540057]
[1738822632563,0.03,203.08,203.07,19.52540057]
[1738822632949,0.03,203.08,203.07,14.60100057]
[1738822634975,0.03,203.08,203.07,29.20200114]
[1738822635281,0.03,203.08,203.07,14.60100057]
[1738822640285,0.03,203.08,203.07,15.33952054]
[1738822640755,0.03,203.1,203.09,20.0]
[1738822640960,0.03,203.1,203.09,49.20200114]
[1738822641161,0.03,203.1,203.09,49.94039777]
[1738822641359,0.03,203.1,203.09,49.20200114]
[1738822644393,0.03,203.1,203.09,54.12590114]
[1738822644576,0.03,203.1,203.09,54.86427502]
[1738822645283,3.8,203.15,203.09,54.86427502]
[1738822645579,3.8,203.15,203.14,14.60100057]
[1738822646292,7.69572449,203.17,203.14,14.60100057]
[1738822646494,3.8,203.16,203.11,4.9232]
[1738822646791,4.013,203.16,203.11,4.9232]
[1738822647284,0.213,203.16,203.11,4.9232]
[1738822647485,4.013,203.16,203.11,4.9232]
[1738822647791,4.013,203.16,203.15,14.60100057]
[1738822650693,30.0,203.15,203.13,14.60100057]
[1738822650890,30.0,203.15,203.14,14.60100057]
[1738822656002,7.69572449,203.18,203.17,20.0]
[1738822656179,7.69572449,203.18,203.17,34.60100057]
[1738822656702,7.69572449,203.18,203.17,9.30482235]
[1738822657176,7.69572449,203.18,203.16,9.30482235]
[1738822657376,7.69572449,203.18,203.12,4.9231]
[1738822657377,7.69572449,203.18,203.15,9.30482235]
[1738822657777,30.03,203.19,203.15,9.30482235]
[1738822657997,30.03,203.19,203.18,9.30482235]
[1738822659699,33.85,203.19,203.18,9.30482235]
[1738822660911,33.85,203.19,203.17,9.30482235]
[1738822661982,0.213,203.18,203.17,9.30482235]
[1738822662195,0.213,203.18,203.16,9.30482235]
[1738822662597,30.0,203.16,203.15,9.30482235]
[1738822663108,30.213,203.16,203.15,9.30482235]
[1738822670716,0.213,203.16,203.15,9.30482235]
[1738822672089,0.213,203.16,203.15,14.22722235]
[1738822672494,0.243,203.16,203.15,9.30482235]
[1738822674899,30.243,203.16,203.15,9.30482235]
[1738822676590,30.243,203.16,203.13,9.30482235]
[1738822677912,30.12549,203.12,203.1,0.063]
[1738822678207,0.12549,203.11,203.1,0.063]
[1738822678412,24.09314088,203.11,203.1,0.063]
[1738822678599,25.60104088,203.11,203.1,0.063]
[1738822679901,26.50308139,203.11,203.1,0.063]
[1738822680198,31.42648139,203.11,203.1,0.063]
[1738822680514,31.42648139,203.11,203.1,0.0355871]
[1738822681514,31.42648139,203.11,203.1,8.71e-05]
[1738822682390,34.83575854,203.11,203.1,8.71e-05]
[1738822682598,30.0,203.03,203.02,0.063]
[1738822682797,33.82,203.03,203.02,0.063]
[1738822685422,33.82,203.03,203.02,9.36782235]
[1738822688219,33.82,203.03,203.02,0.063]
[1738822688926,33.82,203.03,203.02,9.36782235]
[1738822690627,33.82,203.03,203.02,0.063]
[1738822692220,38.7453,203.03,203.02,0.063]
[1738822694301,52.40812853,203.03,203.02,0.063]
[1738822694701,65.27095088,203.03,203.02,0.063]
[1738822694940,31.25098,202.98,202.97,0.063]
[1738822695111,44.66282853,202.98,202.97,0.063]
[1738822695443,44.78831853,202.98,202.97,0.0001]
[1738822695735,54.99518139,202.98,202.97,0.0001]
[1738822695900,59.92168139,202.98,202.97,0.0001]
[1738822696402,49.61685904,202.98,202.97,0.0001]
[1738822696600,34.70204051,202.98,202.97,9.30492235]
[1738822697018,33.92549,202.98,202.97,9.30492235]
[1738822697421,47.58831853,202.98,202.97,0.0001]
[1738822700244,58.89314088,202.98,202.97,0.0001]
[1738822700842,43.66282853,202.9,202.89,0.063]
[1738822701310,52.96765088,202.9,202.89,0.063]
[1738822702223,52.96765088,202.9,202.82,9.30482235]
[1738822702224,30.25098,202.82,202.76,0.063]
[1738822702432,56.78765088,202.82,202.76,0.063]
[1738822702821,56.78765088,202.82,202.76,9.36782235]
[1738822703023,47.48282853,202.82,202.78,9.30482235]
[1738822703423,52.41322853,202.82,202.78,9.30482235]
[1738822704629,52.53871853,202.82,202.78,14.6006739]
[1738822704836,33.94549,202.82,202.81,14.6636739]
[1738822707040,47.48282853,202.82,202.81,14.6636739]
[1738822707410,33.94549,202.82,202.81,14.6636739]
[1738822715241,30.12549,202.82,202.81,14.6636739]
[1738822715431,33.92549,202.82,202.81,14.6636739]
[1738822715832,33.8,202.82,202.81,14.6636739]
[1738822716252,30.0,202.82,202.81,14.6636739]
[1738822716432,30.0,202.85,202.81,19.5943739]
[1738822716634,30.0,202.85,202.84,14.6006739]
[1738822716940,33.8,202.85,202.84,14.6006739]
[1738822719150,30.0,202.85,202.84,14.6006739]
[1738822719454,3.8,202.85,202.84,14.6006739]
[1738822719953,30.0,202.91,202.9,14.6006739]
[1738822720123,33.8,202.91,202.9,29.2013478]
[1738822720755,33.8,202.91,202.9,14.6006739]
[1738822721134,30.0,202.91,202.9,14.6006739]
[1738822722463,30.12549,202.91,202.9,14.6006739]
[1738822726059,43.78831853,202.91,202.9,14.6006739]
[1738822727343,48.71651853,202.91,202.9,14.6006739]
[1738822727954,30.12549,202.91,202.9,14.6006739]
[1738822728150,33.78,202.91,202.9,14.6006739]
[1738822729161,30.0,202.91,202.9,14.6006739]
[1738822729378,3.78,202.92,202.9,29.2013478]
[1738822729543,30.0,202.94,202.91,14.6006739]
[1738822729741,3.78,202.94,202.93,14.6006739]
[1738822729944,30.0,202.97,202.93,14.6006739]
[1738822729945,3.78,202.97,202.93,14.6006739]
[1738822730261,3.81,202.98,202.96,14.6006739]
[1738822730446,3.81,202.98,202.97,14.6006739]
[1738822731238,0.03,202.98,202.97,29.2013478]
[1738822731443,30.0,203.03,202.97,34.1280478]
[1738822731670,33.8,203.03,203.02,14.6006739]
[1738822732165,88.66549,203.06,203.02,14.6006739]
[1738822732377,88.66549,203.06,203.05,14.6006739]
[1738822732545,105.85733853,203.06,203.05,14.6006739]
[1738822733270,102.07733853,203.06,203.05,14.6006739]
[1738822733449,105.85733853,203.06,203.05,14.6006739]
[1738822733646,102.07733853,203.06,203.05,14.6006739]
[1738822733850,105.85733853,203.06,203.05,14.6006739]
[1738822734571,92.44549,203.06,203.05,14.6006739]
[1738822736674,88.66549,203.06,203.05,14.6006739]
[1738822736865,92.44549,203.06,203.05,14.6006739]
[1738822738874,88.66549,203.06,203.05,14.6006739]
[1738822739076,92.32,203.06,203.05,14.6006739]
[1738822740255,30.0,203.09,203.05,14.6006739]
[1738822740575,0.03,203.1,203.08,14.6006739]
[1738822740771,0.03,203.1,203.09,14.6006739]
[1738822741263,0.03,203.1,203.09,29.2013478]
[1738822742172,0.03,203.1,203.09,14.6006739]
[1738822742471,0.03,203.11,203.09,29.2013478]
[1738822742675,0.03,203.16,203.11,14.6006739]
[1738822742968,0.03,203.16,203.15,14.6006739]
[1738822743548,0.03,203.18,203.15,14.6006739]
[1738822743751,0.03,203.18,203.17,29.2013478]
[1738822743975,0.03,203.19,203.17,29.2013478]
[1738822744279,0.03,203.19,203.18,14.6006739]
[1738822744457,30.03,203.19,203.18,14.6006739]
[1738822746852,35.17268,203.18,203.16,14.6006739]
[1738822747054,30.0,203.16,203.15,14.6006739]
[1738822747669,30.213,203.16,203.15,14.6006739]
[1738822747983,0.213,203.16,203.15,14.6006739]
[1738822750503,0.03,203.19,203.16,4.9222]
[1738822750682,0.03,203.19,203.18,29.2013478]
[1738822751158,0.03,203.19,203.18,14.6006739]
[1738822752886,30.0,203.27,203.19,6.5254]
[1738822753070,30.0,203.27,203.26,14.6006739]
[1738822753583,3.78,203.27,203.26,14.6006739]
[1738822753781,33.78,203.27,203.26,14.6006739]
[1738822754493,3.78,203.27,203.26,14.6006739]
[1738822754805,3.81,203.29,203.26,14.6006739]
[1738822754960,3.81,203.29,203.28,14.6006739]
[1738822755580,0.03,203.29,203.28,14.6006739]
[1738822758683,0.15549,203.29,203.28,14.6006739]
[1738822759564,43.41184853,203.28,203.27,14.6006739]
[1738822759767,43.41184853,203.28,203.2,14.6006739]
[1738822759768,30.12549,203.27,203.26,14.6006739]
[1738822759968,30.12549,203.27,203.25,14.6006739]
[1738822760167,30.0,203.23,203.19,1.6039]
[1738822760502,30.0,203.23,203.14,140.6683]
[1738822760503,30.12549,203.23,203.22,14.6006739]
[1738822761197,35.04619,203.22,203.21,14.6006739]
[1738822761405,35.04619,203.22,203.14,1.6039]
[1738822761406,30.0,203.2,203.14,1.6039]
[1738822761569,30.12549,203.2,203.19,14.6006739]
[1738822761769,33.88549,203.2,203.19,14.6006739]
[1738822762869,47.29733853,203.2,203.19,14.6006739]
[1738822764108,33.88549,203.2,203.19,14.6006739]
[1738822764613,30.0,203.2,203.19,14.6006739]
[1738822764905,33.76,203.2,203.19,14.6006739]
[1738822765878,47.17184853,203.2,203.19,14.6006739]
[1738822766115,47.42282853,203.2,203.19,14.6006739]
[1738822766276,47.42282853,203.2,203.17,14.6006739]
[1738822766277,43.41184853,203.18,203.17,14.6006739]
[1738822766672,43.66282853,203.18,203.1,14.6006739]
[1738822766883,43.41184853,203.17,203.16,14.6006739]
[1738822767316,48.33374853,203.17,203.16,14.6006739]
[1738822767508,30.0,203.16,203.14,14.6006739]
[1738822767675,13.41184853,203.15,203.14,14.6006739]
[1738822768516,43.78831853,203.14,203.13,14.6006739]
[1738822768813,0.12549,203.12,203.11,14.6006739]
[1738822769196,13.78831853,203.11,203.1,14.6006739]
[1738822769381,48.71191853,203.1,203.09,14.6636739]
[1738822770308,48.71191853,203.1,203.09,0.063]
[1738822771022,48.71191853,203.1,203.09,14.6636739]
[1738822771393,48.71191853,203.1,203.09,0.063]
[1738822771587,48.71191853,203.1,203.09,14.6636739]
[1738822772218,48.71191853,203.1,203.09,0.063]
[1738822774504,49.71191853,203.1,203.09,0.063]
[1738822774703,49.71191853,203.1,203.04,14.6006739]
[1738822774704,30.25098,203.05,203.04,14.6006739]
[1738822774910,43.41184853,203.03,203.02,14.6006739]
[1738822775104,43.66282853,203.03,203.02,14.6006739]
[1738822775305,43.41184853,203.01,203.0,14.6006739]
[1738822775487,30.0,202.99,202.98,14.6006739]
[1738822775688,43.41184853,202.99,202.98,14.6006739]
[1738822776111,43.66282853,202.99,202.98,14.6006739]
[1738822776324,43.41184853,202.98,202.97,14.6006739]
[1738822777580,30.0,202.98,202.97,14.6006739]
[1738822778383,30.12549,202.98,202.97,14.6006739]
[1738822778890,30.0,202.98,202.97,14.6006739]
[1738822779218,3.76,203.0,202.97,29.2013478]
[1738822779425,3.76,203.0,202.99,29.2013478]
[1738822779584,30.0,203.04,202.99,29.2013478]
[1738822779780,30.0,203.07,203.03,14.6006739]
[1738822780005,33.78,203.1,203.06,14.6006739]
[1738822780227,33.78,203.1,203.09,14.6006739]
[1738822780717,30.0,203.1,203.09,23.28698156]
[1738822781218,43.78831853,203.1,203.09,23.28698156]
[1738822781397,43.53733853,203.1,203.09,23.28698156]
[1738822781600,30.12549,203.1,203.09,23.28698156]
[1738822781978,43.53733853,203.1,203.09,23.28698156]
[1738822784523,30.25098,203.07,203.06,23.28698156]
[1738822785244,43.41184853,203.07,203.06,23.28698156]
[1738822786128,30.0,203.07,203.06,23.28698156]
[1738822786829,43.41184853,203.07,203.06,23.28698156]
[1738822787927,30.0,203.07,203.06,23.28698156]
[1738822789013,30.12549,203.1,203.06,23.28698156]
[1738822789211,47.33733853,203.1,203.09,23.28698156]
[1738822792712,33.92549,203.1,203.09,23.28698156]
[1738822793108,30.25098,203.08,203.07,23.28698156]
[1738822793338,43.41184853,203.07,203.06,23.28698156]
[1738822795941,43.41184853,203.07,203.04,23.28698156]
[1738822795942,30.0,203.05,203.04,23.28698156]
[1738822798242,0.12549,203.02,203.01,23.28698156]
[1738822798548,13.53733853,203.02,203.0,0.063]
[1738822799242,13.53733853,203.02,203.0,23.34998156]
[1738822799638,13.53733853,203.02,203.0,0.063]
[1738822799936,13.78831853,203.01,203.0,0.063]
[1738822800532,18.71411853,203.01,203.0,0.063]
[1738822801428,0.12549,203.01,203.0,23.34998156]
[1738822801623,30.0,203.03,203.0,23.34998156]
[1738822801829,30.0,203.03,203.02,23.28698156]
[1738822802365,43.53733853,203.03,203.02,23.28698156]
[1738822802667,43.53733853,203.03,203.02,14.56518222]
[1738822803223,30.12549,203.03,203.02,14.56518222]
[1738822804359,30.0,203.03,203.02,14.56518222]
[1738822805063,30.0,203.06,203.02,14.56518222]
[1738822805237,33.78,203.06,203.05,14.56518222]
[1738822806052,30.0,203.09,203.05,14.56518222]
[1738822806238,30.0,203.09,203.08,14.56518222]
[1738822806439,30.0,203.13,203.08,14.56518222]
[1738822806627,30.0,203.13,203.09,14.56518222]
[1738822806823,0.12549,203.12,203.09,14.56518222]
[1738822808052,13.53733853,203.12,203.09,14.56518222]
[1738822808234,30.03,203.1,203.09,14.56518222]
[1738822808950,30.15549,203.1,203.09,14.56518222]
[1738822811055,30.03,203.1,203.09,14.56518222]
[1738822811243,0.03,203.1,203.09,14.56518222]
[1738822812655,30.03,203.1,203.09,14.56518222]
[1738822814134,0.03,203.1,203.09,14.56518222]
[1738822814529,0.03,203.1,203.09,29.13036444]
[1738822815542,0.03,203.1,203.09,14.56518222]
[1738822816451,37.72592644,203.18,203.1,1.5013]
[1738822816638,37.72592644,203.18,203.17,14.56518222]
[1738822816846,30.12549,203.17,203.16,14.56518222]
[1738822818843,30.0,203.17,203.16,14.56518222]
[1738822819665,58.55,203.19,203.16,14.56518222]
[1738822819853,58.55,203.19,203.18,14.56518222]
[1738822820860,58.55,203.19,203.1,16.06648222]
[1738822820861,30.12549,203.17,203.16,14.56518222]
[1738822822846,30.0,203.17,203.15,14.56518222]
[1738822825662,30.0,203.17,203.16,14.56518222]
[1738822826166,58.55,203.19,203.16,14.56518222]
[1738822826370,30.0,203.18,203.17,14.56518222]
[1738822826789,30.12549,203.18,203.17,14.56518222]
[1738822827366,30.12549,203.16,203.15,14.56518222]
[1738822827763,0.12549,203.15,203.13,14.56518222]
[1738822828157,0.12549,203.12,203.11,14.56518222]
[1738822828352,30.0,203.11,203.1,14.56518222]
[1738822829063,30.0,203.14,203.1,14.56518222]
[1738822829253,30.12549,203.14,203.13,14.56518222]
[1738822829574,0.12549,203.13,203.12,14.56518222]
[1738822834352,30.0,203.11,203.1,14.56518222]
[1738822835391,30.0,203.14,203.1,14.56518222]
[1738822835578,30.0,203.14,203.13,14.56518222]
[1738822838327,30.0,203.17,203.13,19.48808222]
[1738822838468,30.0,203.17,203.16,14.56518222]
[1738822838666,30.12549,203.17,203.16,14.56518222]
[1738822839703,0.12549,203.16,203.15,14.56518222]
[1738822839872,30.12549,203.15,203.14,14.56518222]
[1738822840072,43.53733853,203.15,203.14,14.56518222]
[1738822840488,30.12549,203.14,203.13,14.56518222]
[1738822842180,0.25098,203.13,203.11,14.56518222]
[1738822842384,30.0,203.11,203.1,0.063]
[1738822842587,43.41184853,203.11,203.1,0.063]
[1738822843277,30.0,203.14,203.1,0.063]
[1738822843499,30.0,203.11,203.1,0.063]
[1738822850116,48.71171853,203.11,203.1,0.063]
[1738822853397,49.61375904,203.11,203.1,0.063]
[1738822853801,66.17894126,203.11,203.1,0.063]
[1738822854121,30.12549,203.03,203.02,14.56518222]
[1738822854423,47.33733853,203.03,203.02,14.56518222]